Workbook

Sheet Açıklama
A1: DÖNER SERMAYE EK ÖDEME DAĞITIMI
A2: HAKKINDA AÇIKLAMALAR
A4: Döner Sermaye gelirlerinin dağıtımında 03.03.2011 tarih ve 27863 sayılı Resmi Gazete'de yayımlanarak
A5: yürürlüğe giren 6114 sayılı Kanunun 17. Maddesi ile değişen 2547 Sayılı Kanunun 58. Maddesi gereği
A6: bundan böyle aşağıda açıklanan usul ve esaslar doğrultusunda ek ödeme dağıtımı yapılacaktır.
A8: 1. | B8: 2547 Sayılı Kanunun (b) fıkrası gereği "Ziraat ve veteriner fakülteleri, sivil havacılık yüksekokulu, sürekli eğitim merkezleri ile bünyesinde atölye veya laboratuvar bulunan yükseköğretim kurumları için asgari yüzde 30' u, diğer yükseköğretim kurumları için ise asgari yüzde 15'i, ilgili yükseköğretim kurumunun ihtiyacı olan mal ve hizmet alımları, her türlü bakım, onarım, kiralama, devam etmekte olan projelerin tamamlanmasına yönelik inşaat işleri ve diğer ihtiyaçlar ile yönetici payları için kullanılır. Bu oranları yüzde 75'ine kadar artırmaya üniversite yönetim kurulu yetkilidir." Sürekli Eğitim Merkezi ile bünyesinde atölye ve laboratuvar bulunan birimlerin gelirlerinde %30'luk mal ve hizmet alımları, her türlü bakım, onarım, kiralama, devam etmekte olan projelerin tamamlanmasına yönelik inşaat işleri ve diğer ihtiyaçlar ile yönetici payları için kesinti yapılacaktır.
A9: 2. | B9: Mesai İçi Ek Ödeme Payı Limitleri; (1) Gelir getiren görevlerde çalışan öğretim üyesi ve öğretim görevlilerine aylık (ek gösterge dahil), yan ödeme, ödenek (geliştirme ödeneği hariç) ve 28/3/1983 tarihli ve 2809 sayılı Kanunun geçici 3 üncü maddesinin beşinci fıkrası uyarınca ödenen tazminat dahil,(makam, temsil ve görev tazminatı ile yabancı dil tazminatı hariç) toplamından oluşan ek ödeme matrahının yüzde 800'ünü, araştırma görevlilerine ise yüzde 500'ünü; bu yerlerde görevli olmakla birlikte gelire katkısı olmayan öğretim üyesi ve öğretim görevlilerine yüzde 600'ünü, araştırma görevlilerine ise yüzde 300'ünü, (2) Diğer öğretim elemanlarına ve 657 sayılı Devlet Memurları Kanununa tabi personel (döner sermaye işletme müdürlüğü ve döner sermaye saymanlık personeli dahil) ile aynı Kanunun 4 üncü maddesinin (B) bendine göre sözleşmeli olarak çalışan personele ek ödeme matrahının; hastaneler başmüdürü ve eczacılar için yüzde 250'sini, başhemşireler için yüzde 200'ünü, diğer öğretim elemanları ile diğer personel için yüzde 150'si şeklinde olacaktır.
A10: 3. | B10: Mesai Dışı Ek Ödeme Payı Limitleri; "Nöbet hizmetleri hariç olmak üzere mesai saatleri dışında gelir getirici çalışmalarından doğan katkılarına karşılık olarak (1) numaralı bentte belirtilen personel için yüzde 50'sini, (2) numaralı bentte belirtilen personel için yüzde 20'sini geçmeyecek şekilde ayrıca aylık ek ödeme yapılır." yukarıdaki kanun maddesinde de belirtildiği üzere mesai saati dışı ücretleri (1) nolu bend için %50 (Örnek: Öğretim Üyeleri %400), (2) nolu bend için %20 (Örnek: Diğer Öğretim Elemanları;Okutman : %30 ) şeklinde olacaktır.
A11: 4. | B11: Yönetici Görevi olan Öğretim Üyesi ve Görevlilerinin Çalışma Şekli; 2547 Sayılı Kanunun (f) fıkrası gereği; "Bu fıkra kapsamında bulunan yöneticilere, mesai saatleri içerisinde verdikleri mesleki hizmetlerinden dolayı ayrıca ek ödeme yapılmaz. Mesai saatleri dışında döner sermaye gelirlerine katkıları bulunması halinde alabilecekleri toplam ek ödeme tutarı, hiçbir şekilde yönetici payı dahil ilgisine göre (c) ve (d) fıkralarında belirtilen esaslara göre hesaplanacak tutarı geçemez." Yönetici pozisyonunda olan Öğretim Üyesi/Görevlileri mesai saatleri içerisinde döner sermaye işi yapamazlar, ancak Mesai Saatleri dışında döner sermaye kapsamında gelir getirici faaliyetlerde bulunabilirler. Bu kapsamda yaptıkları işlerden 3.maddede belirtilen oranlarda ek ödeme alırlar.
A12: 5. | B12: Döner Sermaye Kapsamında iş yapan Öğretim Üyesi/Görevlisi Proje Yürütücüsü olarak anılacak olup, Bireysel Gelir Getirici Faaliyet Cetvelinde kendisine ait düzenlemesi gereken bölümde; yapılan işin Mesai Saatleri içerisinde mi? Yoksa mesai saatleri dışında mı? yapıldığına dair işaretlemeleri yapacaklardır. Ayrıca yapılan döner sermaye işinde Üniversite imkanlarının kullanılıp kullanılmadığına dair bölümüde işaretleyip imzalamaları gerekmektedir.
A13: 6. | B13: Döner Sermaye Kapsamlı olarak yapılan işlerden, Ek Ödeme yapılmak üzere birimizce doldurulacak Bireysel Gelir Getirici Faaliyet Cetvelinde, mesai saatleri içerisinde ve mesai saatleri dışında yapılan işler için birimimiz açısından mesai saati içi ve mesai saati dışı gelirlerinin ayrı ayrı takip edilmesi gerekliliği açısından ikisi içinde ayrı form düzenlenmesi gerekmektedir.
A14: 7. | B14: Döner Sermaye Kapsamlı olarak yapılan işlerden, Ek Ödeme yapılmak üzere birimizce doldurulacak Bireysel Gelir Getirici Faaliyet Cetvelinde, Üniversite imkanlarının kullanıldığı işler ve Üniversite imkanlarının kullanılmadığı işler için birimimiz açısından bunların ayrı ayrı takip edilmesi gerekliliği açısından ikisi içinde ayrı form düzenlenmesi gerekmektedir.
A15: 8. | B15: Mesai İçi İşlerde B1 Puanı Uygulanır dolayısı ile faaliyet puanı B1 kutucuğuna yazılacaktır. Mesai Dışı işlerde B2 Puanı uygulanır, ve faaliyet puanı B2 kutucuğuna yazılacaktır. Bunlar bir iş için Sadece B1 veya Sadece B2 olabileceği gibi her ikiside olabilir. O halde her iki kutucuğada ilgili puanın yazılması gerekir. Puantaj tutularak hesaplanan puanlar puantaj formundan otomatik olarak aktarılacaktır.
A16: 9. | B16: Döner Sermaye gelirlerinden yapılacak ek ödemenin hesaplanmasında, 18.02.2011 tarih ve 27850 sayılı Resmi Gazete’de yayımlanarak yürürlüğe giren “Yükseköğretim Kurumlarında Döner Sermaye Gelirlerinden Yapılacak Ek Ödemenin Dağıtılmasında Uygulanacak Usul ve Esaslara İlişkin Yönetmelik”in 5. Maddesi gereği, Üniversitemiz Yönetim Kurulunun Kararı üzerine, Bireysel Gelir Getirici Faaliyet (B) Puanı ; (Mesai içi : B1 ve Mesai Dışı : B2) puanı kullanılacaktır.
A17: 10. | B17: "2547 Sayılı Kanunun (b) fıkrası gereği "Ziraat ve veteriner fakülteleri, sivil havacılık yüksekokulu, sürekli eğitim merkezleri ile bünyesinde atölye veya laboratuvar bulunan yükseköğretim kurumları için asgari yüzde 30' u, diğer yükseköğretim kurumları için ise asgari yüzde 15'i, ilgili yükseköğretim kurumunun ihtiyacı olan mal ve hizmet alımları, her türlü bakım, onarım, kiralama, devam etmekte olan projelerin tamamlanmasına yönelik inşaat işleri ve diğer ihtiyaçlar ile yönetici payları için kullanılır." denmekte olup, ayrıca üniversite imkanlarının kullanılmadığı işler içinde bu pay oranı %15 uygulanmaktadır. Dolayısı ile Payı %30 olan birimde görevli öğr.gör. yaptığı işi üniversite imkanlarını kullanmadan yaptığını beyan ederse bu pay %15 olarak uygulanacaktır.
A18: 11. | B18: EK-1 ve EK-2 Dağıtım Cetveli; 2547 Sayılı Yükseköğretim Kanununun 58 inci maddesinin ( c ) ve ( d ) bendi kapsamında bulunan birimler tarafından kullanılacaktır.
A19: 12. | B19: EK-3 Dağıtım Cetveli; 2547 Sayılı Yükseköğretim Kanununun 58 inci maddesinin ( c ) ve ( d ) bendi kapsamı dışındaki birimler ile öğretim elemanlarının üniversite imkanlarını kullanmadan gerçekleştirdikleri hizmetler için (2547 - 58-e) kullanılacaktır.
A20: 13. | B20: EK-4 Dağıtım Cetveli; 2547 Sayılı Yükseköğretim Kanununun 58 inci maddesinin ( k ) bendi kapsamında gerçekleştirilen hizmetler için kullanılacaktır.

Sheet Veriler
B3: Ek Ödeme Oranları | F3: Ek Ödeme Matrahı | N3: Yönetici Payı Oranları
B4: Ünvanı | C4: Mesai İçi | D4: Mesai Dışı | G4: Matraha Esas Unsurlar | N4: Görevi | O4: Oranı
B5: Prof.Dr. | C5: 950 | D5: 475 | F5: 1. | G5: Aylık (Ek Gösterge dahil) | N5: Rektör | O5: 600
B6: Doç.Dr. | C6: 950 | D6: 475 | F6: 2. | G6: Yan Ödeme | N6: Rektör Yardımcısı | O6: 300
B7: Dr.Öğr.Gör. | C7: 950 | D7: 475 | F7: 3. | G7: Ödenek (Geliştirme Ödeneği Hariç) | N7: Dekan | O7: 250
B8: Dr. | C8: 950 | D8: 475 | F8: 3.1. | G8: Üniversite Ödeneği | N8: Dekan Yardımcısı | O8: 100
B9: Öğr.Gör. | C9: 950 | D9: 475 | F9: 3.2. | G9: İdari Görev Ödeneği | N9: Müdür | O9: 250
B10: Arş.Gör. | C10: 600 | D10: 300 | F10: 3.3. | G10: Eğitim Öğretim Ödeneği | N10: Müdür Yardımcısı | O10: 100
B11: Okutman | C11: 150 | D11: 30 | F11: 4. | G11: Tazminat (Makam,Temsil,Görev ve Yabancı Dil Tazminatı Hariç)
B12: Uzman | C12: 150 | D12: 30
B16: (B) Bireysel Gelir Getirici Faaliyet Puanı : | F16: Kurum İçinde bireysel gelir getirici faaliyetlerden dolayı alınan mesai içi (B1)
F17: ve mesai dışı (B2) puanlarının toplamnından oluşan puanlardır.
B19: (B) = "Gelir Getirici Faaliyet Cetveline" göre alınan toplam puan.
B21: Dönem Ek Ödeme Katsayısı : | E21: İlgili dönemde tespit edilen ve 1 (bir) puanı ücrete dönüştürmek için kullanılan katsayıdır. İlgili ödeme döneminde dağıtımına karar verilen döner sermaye miktarının, ilgili ödeme döneminde birim bireysel net katkı puanları toplamına bölünmesi sonucu bulunan katsayıyı (Dağıtılabilecek Miktar/Birim Bireysel Net Katkı Puanları Toplamı)

Sheet Faaliyet Cetveli
B3: T.C.
B4: YALOVA ÜNİVERSİTESİ
B5: DÖNER SERMAYE İŞLETME MÜDÜRLÜĞÜ
B6: 20.. MALİ YILI GELİR GETİRİCİ FAALİYET CETVELİ
B8: Birim Adı | C8: Faaliyet Türü | D8: Açıklama | E8: Unvan/Görev | F8: Mesai İçi Puan | G8: Mesai Dışı Puan
F9: B1 | G9: B2
B10: Sürekli Eğitim Uygulama Ve Araştırma Merkezi | C10: Uygulama Dersleri Kurslar/Eğitimler | D10: Bir Ders Saati (45 dk.) | E10: Öğrt.Elm. / Eğitmen | F10: 100 | G10: 100
C11: Teorik Dersler Kurslar/Eğitimler | D11: Bir Ders Saati (45 dk.) | E11: Öğrt.Elm. / Eğitmen | F11: 100 | G11: 100
C12: Kurslar Eğitimler | D12: Her Ders Saati İçin 0,15 Ders Ücreti | E12: Öğrt.Elm. / Koordinatör | F12: 15 | G12: 15
B13: Türkçe Öğretim, Uygulama Ve Araştırma Merkezi | C13: Türkçe Kursu | D13: Bir Ders Saati İçin | E13: Prof.Dr. | F13: 100 | G13: 100
E14: Doç.Dr. | F14: 90 | G14: 90
E15: Yrd.Doç.Dr. | F15: 80 | G15: 80
E16: Öğrt.Gör.Dr. | F16: 75 | G16: 75
E17: Arş.Gör.Dr. | F17: 75 | G17: 75
E18: Öğrt.Gör. | F18: 70 | G18: 70
E19: Arş.Gör. | F19: 60 | G19: 60
E20: Okutman | F20: 60 | G20: 60
E21: Uzman | F21: 60 | G21: 60
B22: Uzaktan Eğitim Uygulama Ve Araştırma Merkezi | C22: Kurs Koordinatörlüğü | D22: Koordinatörlük yapılan programda ilgili dönemde yürütülen her ders için ayda 4 saat esas alınır. | E22: Öğrt.Elm. / Kurs Koordinatörü | F22: 30 | G22: 30
C23: 10-20 dk Asenkron Çekimi Seslendirmesi | D23: Her bir 10-20 dakika çekim için 3 saat esas alınır. | E23: Öğrt.Elm. / Eğitmen | F23: 30 | G23: 30
C24: Senkron ders oturumunun gerçekleştirilmesi | D24: Her bir 50-60 dk asenkron ders için 3 saat esas alınır. | F24: 30 | G24: 30
C25: Yazılı ve Görsel Ham İçeriğin Geliştirilmesi | D25: Her bir 20 sayfa /slayt için 1 saat esas alınır. | F25: 10 | G25: 10
C26: Asenkron Derslerin Geliştirilmesi | D26: Her 5 sayfa/slayt yada 10- 20 dk lık asekron ders için 2 saat esas alınır. | E26: Öğrt.Elm. / Eğitmen Yardımcısı | F26: 20 | G26: 20
C27: Öğrenme Yönetim Sistemi Konfigürasyonu | D27: Her bir ders için 3 saat esas alınır. | F27: 10 | G27: 10
C28: Senkron Ders Oturumlarının Denetimi ve Gözlenmesi | D28: Her bir sanal ders oturumu için 1 saat esas alınır. | F28: 5 | G28: 5
C29: Ders Koordinasyonu ve Denetimi | D29: Her bir ders için 2 saat esas alınır. | F29: 10 | G29: 10
C30: Çevrimiçi Değerlendirme Koordinasyonu | D30: Her bir ders için 2 saat esas alınır. | F30: 10 | G30: 10
B31: Mühendislik Fakültesi | C31: Laboratuvar Analiz / Deney / Test Uygulaması | D31: Uygulama Başına | E31: Öğretim Elemanı | F31: 100 | G31: 100
B33: İleri Teknolojiler Uygulama Ve Araştırma Merkezi | C33: Laboratuvar Analiz / Deney / Test Uygulaması | D33: Uygulama Başına | E33: Öğretim Elemanı | F33: 100 | G33: 100
B35: Gıda Kontrol Uygulama Ve Araştırma Merkezi | C35: Laboratuvar Analiz / Deney / Test Uygulaması | D35: Uygulama Başına | E35: Öğretim Elemanı | F35: 100 | G35: 100
B37: ……. 2019 TARİH VE …. SAYLI ÜNİVERSİTE YÖNETİM KURULU KARARI

Sheet Ek Ödemem Puantaj Cetveli
A1: T.C.
A2: YALOVA ÜNİVERSİTESİ | F2: KIRKLARELİ ÜNİVERSİTESİ FEN EDEBİYAT FAKÜLTESİ
A3: BİRİM ADI YAZILACAK | F3: 2014-2015 PEDAGOJİK FORMASYON SERTİFİKA EĞİTİMİ PROGRAMI
A5: İŞİN ADI YAZILACAK EK ÖDEME PUANTAJ CETVELİ
AU6: Ait Olduğu Ay :
AU7: Bütçe Yılı : 20…
A9: ÖĞRETİM ELEMANININ | D9: Faaliyet Türü | E9: Mesai Durumu | F9: Başlama Tarihi:.../.../20... | AA9: Bitiş Tarihi:.../.../20... | AD9: Bitiş Tarihi :31/10/2014 | AT9: Mesai Saati Toplamı | AU9: Toplam Saat | AV9: Birim Faaliyet Puanı | AW9: TOPLAM FAALİYET PUANI
A12: S.No | B12: ÜNVANI | C12: ADI VE SOYADI | F12: AY / 1.Hafta | N12: AY / 2.Hafta | V12: AY / 3.Hafta | AD12: AY / 4.Hafta | AL12: AY / 5.Hafta | AW12: B1 | AX12: B2
F13: Pt. | G13: Sa | H13: Ça | I13: Pe | J13: Cu | K13: Ct. | L13: Pz. | M13: Toplam | N13: Pt. | O13: Sa | P13: Ça | Q13: Pe | R13: Cu | S13: Ct. | T13: Pz. | U13: Toplam | V13: Pt. | W13: Sa | X13: Ça | Y13: Pe | Z13: Cu | AA13: Ct. | AB13: Pz. | AC13: Toplam | AD13: Pt. | AE13: Sa | AF13: Ça | AG13: Pe | AH13: Cu | AI13: Ct. | AJ13: Pz. | AK13: Toplam | AL13: Pt. | AM13: Sa | AN13: Ça | AO13: Pe | AP13: Cu | AQ13: Ct. | AR13: Pz. | AS13: Toplam
F14: 1 | G14: 2 | H14: 3 | I14: 4 | J14: 5 | K14: 6 | L14: 7 | N14: 8 | O14: 9 | P14: 10 | Q14: 11 | R14: 12 | S14: 13 | T14: 14 | V14: 15 | W14: 16 | X14: 17 | Y14: 18 | Z14: 19 | AA14: 20 | AB14: 21 | AD14: 22 | AE14: 23 | AF14: 24 | AG14: 25 | AH14: 26 | AI14: 27 | AJ14: 28 | AL14: 29 | AM14: 30 | AN14: 31 | AO14: 1 | AP14: 2 | AQ14: 3 | AR14: 4 | AW14: Mesai İçi | AX14: Mesai Dışı
A15: 1 | B15: Doç.Dr. | C15: Örnek KİŞİ A | D15: Uygulama Dersleri Kurslar/Eğitimler | E15: Mesai İçi | F15: X | G15: X | H15: X | I15: X | J15: X | K15: X | L15: X | M15: =SUM(F15:L15) -> 0 | N15: X | O15: X | P15: X | Q15: X | R15: X | S15: X | T15: X | U15: =SUM(N15:T15) -> 0 | V15: X | W15: X | X15: X | Y15: X | Z15: X | AA15: X | AB15: X | AC15: =SUM(V15:AB15) -> 0 | AD15: X | AE15: X | AF15: X | AG15: X | AH15: X | AI15: X | AJ15: X | AK15: =SUM(AD15:AJ15) -> 0 | AL15: X | AM15: X | AN15: X | AO15: X | AP15: X | AQ15: X | AR15: X | AS15: =SUM(AL15:AR15) -> 0 | AT15: =M15+U15+AC15+AK15+AS15 -> 0 | AU15: =AT15+AT16 -> 66 | AV15: =VLOOKUP(D15,'Faaliyet Cetveli'!$C$10:$F$36,4,FALSE) -> 100 | AW15: =(AT15*AV15) -> 0 | AX15: =(AT16*AV16) -> 6,600
E16: Mesai Dışı | F16: X | G16: X | H16: X | I16: 8 | J16: 4 | K16: X | L16: X | M16: =SUM(F16:L16) -> 12 | N16: X | O16: X | P16: X | Q16: X | R16: X | S16: 8 | T16: 8 | U16: =SUM(N16:T16) -> 16 | V16: X | W16: X | X16: X | Y16: X | Z16: X | AA16: 8 | AB16: 8 | AC16: =SUM(V16:AB16) -> 16 | AD16: X | AE16: X | AF16: X | AG16: X | AH16: X | AI16: 8 | AJ16: 8 | AK16: =SUM(AD16:AJ16) -> 16 | AL16: X | AM16: X | AN16: X | AO16: X | AP16: 6 | AQ16: X | AR16: X | AS16: =SUM(AL16:AR16) -> 6 | AT16: =M16+U16+AC16+AK16+AS16 -> 66 | AV16: =VLOOKUP(D15,'Faaliyet Cetveli'!$C$10:$G$36,5,FALSE) -> 100
A17: 2 | B17: Doç.Dr. | C17: Örnek KİŞİ B | D17: Teorik Dersler Kurslar/Eğitimler | E17: Mesai İçi | F17: X | G17: X | H17: X | I17: X | J17: X | K17: X | L17: X | M17: =SUM(F17:L17) -> 0 | N17: X | O17: X | P17: X | Q17: X | R17: X | S17: X | T17: X | U17: =SUM(N17:T17) -> 0 | V17: X | W17: X | X17: X | Y17: X | Z17: X | AA17: X | AB17: X | AC17: =SUM(V17:AB17) -> 0 | AD17: X | AE17: X | AF17: X | AG17: X | AH17: X | AI17: X | AJ17: X | AK17: =SUM(AD17:AJ17) -> 0 | AL17: X | AM17: X | AN17: X | AO17: X | AP17: X | AQ17: X | AR17: X | AS17: =SUM(AL17:AR17) -> 0 | AT17: =M17+U17+AC17+AK17+AS17 -> 0 | AU17: =AT17+AT18 -> 22 | AV17: =VLOOKUP(D17,'Faaliyet Cetveli'!$C$10:$F$36,4,FALSE) -> 100 | AW17: =(AT17*AV17) -> 0 | AX17: =(AT18*AV18) -> 2,200
E18: Mesai Dışı | F18: X | G18: X | H18: X | I18: 4 | J18: 2 | K18: X | L18: X | M18: 6 | N18: X | O18: X | P18: 4 | Q18: X | R18: X | S18: X | T18: X | U18: 4 | V18: X | W18: X | X18: 4 | Y18: X | Z18: X | AA18: X | AB18: X | AC18: 4 | AD18: X | AE18: X | AF18: 4 | AG18: X | AH18: X | AI18: X | AJ18: X | AK18: 4 | AL18: X | AM18: X | AN18: 4 | AO18: X | AP18: X | AQ18: X | AR18: X | AS18: 4 | AT18: 22 | AV18: =VLOOKUP(D17,'Faaliyet Cetveli'!$C$10:$G$36,5,FALSE) -> 100
A19: 3 | D19: Uygulama Dersleri Kurslar/Eğitimler | E19: Mesai İçi | F19: X | G19: X | H19: X | I19: X | J19: X | K19: X | L19: X | M19: 0 | N19: X | O19: X | P19: X | Q19: X | R19: X | S19: X | T19: X | U19: 0 | V19: X | W19: X | X19: X | Y19: X | Z19: X | AA19: X | AB19: X | AC19: 0 | AD19: X | AE19: X | AF19: X | AG19: X | AH19: X | AI19: X | AJ19: X | AK19: 0 | AL19: X | AM19: X | AN19: X | AO19: X | AP19: X | AQ19: X | AR19: X | AS19: 0 | AT19: 0 | AU19: =AT19+AT20 -> 0 | AV19: =VLOOKUP(D19,'Faaliyet Cetveli'!$C$10:$F$36,4,FALSE) -> 100 | AW19: =(AT19*AV19) -> 0 | AX19: =(AT20*AV20) -> 0
E20: Mesai Dışı | F20: X | G20: X | H20: X | I20: X | J20: X | K20: X | L20: X | M20: 0 | N20: X | O20: X | P20: X | Q20: X | R20: X | S20: X | T20: X | U20: 0 | V20: X | W20: X | X20: X | Y20: X | Z20: X | AA20: X | AB20: X | AC20: 0 | AD20: X | AE20: X | AF20: X | AG20: X | AH20: X | AI20: X | AJ20: X | AK20: 0 | AL20: X | AM20: X | AN20: X | AO20: X | AP20: X | AQ20: X | AR20: X | AS20: 0 | AT20: 0 | AV20: =VLOOKUP(D19,'Faaliyet Cetveli'!$C$10:$G$36,5,FALSE) -> 100
A21: 4 | D21: Uygulama Dersleri Kurslar/Eğitimler | E21: Mesai İçi | F21: X | G21: X | H21: X | I21: X | J21: X | K21: X | L21: X | M21: 0 | N21: X | O21: X | P21: X | Q21: X | R21: X | S21: X | T21: X | U21: 0 | V21: X | W21: X | X21: X | Y21: X | Z21: X | AA21: X | AB21: X | AC21: 0 | AD21: X | AE21: X | AF21: X | AG21: X | AH21: X | AI21: X | AJ21: X | AK21: 0 | AL21: X | AM21: X | AN21: X | AO21: X | AP21: X | AQ21: X | AR21: X | AS21: 0 | AT21: 0 | AU21: =AT21+AT22 -> 0 | AV21: =VLOOKUP(D21,'Faaliyet Cetveli'!$C$10:$F$36,4,FALSE) -> 100 | AW21: =(AT21*AV21) -> 0 | AX21: =(AT22*AV22) -> 0
E22: Mesai Dışı | F22: X | G22: X | H22: X | I22: X | J22: X | K22: X | L22: X | M22: 0 | N22: X | O22: X | P22: X | Q22: X | R22: X | S22: X | T22: X | U22: 0 | V22: X | W22: X | X22: X | Y22: X | Z22: X | AA22: X | AB22: X | AC22: 0 | AD22: X | AE22: X | AF22: X | AG22: X | AH22: X | AI22: X | AJ22: X | AK22: 0 | AL22: X | AM22: X | AN22: X | AO22: X | AP22: X | AQ22: X | AR22: X | AS22: 0 | AT22: 0 | AV22: =VLOOKUP(D21,'Faaliyet Cetveli'!$C$10:$G$36,5,FALSE) -> 100
A23: 5 | D23: Uygulama Dersleri Kurslar/Eğitimler | E23: Mesai İçi | F23: X | G23: X | H23: X | I23: X | J23: X | K23: X | L23: X | M23: 0 | N23: X | O23: X | P23: X | Q23: X | R23: X | S23: X | T23: X | U23: 0 | V23: X | W23: X | X23: X | Y23: X | Z23: X | AA23: X | AB23: X | AC23: 0 | AD23: X | AE23: X | AF23: X | AG23: X | AH23: X | AI23: X | AJ23: X | AK23: 0 | AL23: X | AM23: X | AN23: X | AO23: X | AP23: X | AQ23: X | AR23: X | AS23: 0 | AT23: 0 | AU23: =AT23+AT24 -> 0 | AV23: =VLOOKUP(D23,'Faaliyet Cetveli'!$C$10:$F$36,4,FALSE) -> 100 | AW23: =(AT23*AV23) -> 0 | AX23: =(AT24*AV24) -> 0
E24: Mesai Dışı | F24: X | G24: X | H24: X | I24: X | J24: X | K24: X | L24: X | M24: 0 | N24: X | O24: X | P24: X | Q24: X | R24: X | S24: X | T24: X | U24: 0 | V24: X | W24: X | X24: X | Y24: X | Z24: X | AA24: X | AB24: X | AC24: 0 | AD24: X | AE24: X | AF24: X | AG24: X | AH24: X | AI24: X | AJ24: X | AK24: 0 | AL24: X | AM24: X | AN24: X | AO24: X | AP24: X | AQ24: X | AR24: X | AS24: 0 | AT24: 0 | AV24: =VLOOKUP(D23,'Faaliyet Cetveli'!$C$10:$G$36,5,FALSE) -> 100
A25: 6 | D25: Uygulama Dersleri Kurslar/Eğitimler | E25: Mesai İçi | F25: X | G25: X | H25: X | I25: X | J25: X | K25: X | L25: X | M25: 0 | N25: X | O25: X | P25: X | Q25: X | R25: X | S25: X | T25: X | U25: 0 | V25: X | W25: X | X25: X | Y25: X | Z25: X | AA25: X | AB25: X | AC25: 0 | AD25: X | AE25: X | AF25: X | AG25: X | AH25: X | AI25: X | AJ25: X | AK25: 0 | AL25: X | AM25: X | AN25: X | AO25: X | AP25: X | AQ25: X | AR25: X | AS25: 0 | AT25: 0 | AU25: =AT25+AT26 -> 0 | AV25: =VLOOKUP(D25,'Faaliyet Cetveli'!$C$10:$F$36,4,FALSE) -> 100 | AW25: =(AT25*AV25) -> 0 | AX25: =(AT26*AV26) -> 0
E26: Mesai Dışı | F26: X | G26: X | H26: X | I26: X | J26: X | K26: X | L26: X | M26: 0 | N26: X | O26: X | P26: X | Q26: X | R26: X | S26: X | T26: X | U26: 0 | V26: X | W26: X | X26: X | Y26: X | Z26: X | AA26: X | AB26: X | AC26: 0 | AD26: X | AE26: X | AF26: X | AG26: X | AH26: X | AI26: X | AJ26: X | AK26: 0 | AL26: X | AM26: X | AN26: X | AO26: X | AP26: X | AQ26: X | AR26: X | AS26: 0 | AT26: 0 | AV26: =VLOOKUP(D25,'Faaliyet Cetveli'!$C$10:$G$36,5,FALSE) -> 100
A27: 7 | D27: Uygulama Dersleri Kurslar/Eğitimler | E27: Mesai İçi | F27: X | G27: X | H27: X | I27: X | J27: X | K27: X | L27: X | M27: 0 | N27: X | O27: X | P27: X | Q27: X | R27: X | S27: X | T27: X | U27: 0 | V27: X | W27: X | X27: X | Y27: X | Z27: X | AA27: X | AB27: X | AC27: 0 | AD27: X | AE27: X | AF27: X | AG27: X | AH27: X | AI27: X | AJ27: X | AK27: 0 | AL27: X | AM27: X | AN27: X | AO27: X | AP27: X | AQ27: X | AR27: X | AS27: 0 | AT27: 0 | AU27: =AT27+AT28 -> 0 | AV27: =VLOOKUP(D27,'Faaliyet Cetveli'!$C$10:$F$36,4,FALSE) -> 100 | AW27: =(AT27*AV27) -> 0 | AX27: =(AT28*AV28) -> 0
E28: Mesai Dışı | F28: X | G28: X | H28: X | I28: X | J28: X | K28: X | L28: X | M28: 0 | N28: X | O28: X | P28: X | Q28: X | R28: X | S28: X | T28: X | U28: 0 | V28: X | W28: X | X28: X | Y28: X | Z28: X | AA28: X | AB28: X | AC28: 0 | AD28: X | AE28: X | AF28: X | AG28: X | AH28: X | AI28: X | AJ28: X | AK28: 0 | AL28: X | AM28: X | AN28: X | AO28: X | AP28: X | AQ28: X | AR28: X | AS28: 0 | AT28: 0 | AV28: =VLOOKUP(D27,'Faaliyet Cetveli'!$C$10:$G$36,5,FALSE) -> 100
A29: 8 | D29: Uygulama Dersleri Kurslar/Eğitimler | E29: Mesai İçi | F29: X | G29: X | H29: X | I29: X | J29: X | K29: X | L29: X | M29: 0 | N29: X | O29: X | P29: X | Q29: X | R29: X | S29: X | T29: X | U29: 0 | V29: X | W29: X | X29: X | Y29: X | Z29: X | AA29: X | AB29: X | AC29: 0 | AD29: X | AE29: X | AF29: X | AG29: X | AH29: X | AI29: X | AJ29: X | AK29: 0 | AL29: X | AM29: X | AN29: X | AO29: X | AP29: X | AQ29: X | AR29: X | AS29: 0 | AT29: 0 | AU29: =AT29+AT30 -> 0 | AV29: =VLOOKUP(D29,'Faaliyet Cetveli'!$C$10:$F$36,4,FALSE) -> 100 | AW29: =(AT29*AV29) -> 0 | AX29: =(AT30*AV30) -> 0
E30: Mesai Dışı | F30: X | G30: X | H30: X | I30: X | J30: X | K30: X | L30: X | M30: 0 | N30: X | O30: X | P30: X | Q30: X | R30: X | S30: X | T30: X | U30: 0 | V30: X | W30: X | X30: X | Y30: X | Z30: X | AA30: X | AB30: X | AC30: 0 | AD30: X | AE30: X | AF30: X | AG30: X | AH30: X | AI30: X | AJ30: X | AK30: 0 | AL30: X | AM30: X | AN30: X | AO30: X | AP30: X | AQ30: X | AR30: X | AS30: 0 | AT30: 0 | AV30: =VLOOKUP(D29,'Faaliyet Cetveli'!$C$10:$G$36,5,FALSE) -> 100
A31: 9 | D31: Uygulama Dersleri Kurslar/Eğitimler | E31: Mesai İçi | F31: X | G31: X | H31: X | I31: X | J31: X | K31: X | L31: X | M31: 0 | N31: X | O31: X | P31: X | Q31: X | R31: X | S31: X | T31: X | U31: 0 | V31: X | W31: X | X31: X | Y31: X | Z31: X | AA31: X | AB31: X | AC31: 0 | AD31: X | AE31: X | AF31: X | AG31: X | AH31: X | AI31: X | AJ31: X | AK31: 0 | AL31: X | AM31: X | AN31: X | AO31: X | AP31: X | AQ31: X | AR31: X | AS31: 0 | AT31: 0 | AU31: =AT31+AT32 -> 0 | AV31: =VLOOKUP(D31,'Faaliyet Cetveli'!$C$10:$F$36,4,FALSE) -> 100 | AW31: =(AT31*AV31) -> 0 | AX31: =(AT32*AV32) -> 0
E32: Mesai Dışı | F32: X | G32: X | H32: X | I32: X | J32: X | K32: X | L32: X | M32: 0 | N32: X | O32: X | P32: X | Q32: X | R32: X | S32: X | T32: X | U32: 0 | V32: X | W32: X | X32: X | Y32: X | Z32: X | AA32: X | AB32: X | AC32: 0 | AD32: X | AE32: X | AF32: X | AG32: X | AH32: X | AI32: X | AJ32: X | AK32: 0 | AL32: X | AM32: X | AN32: X | AO32: X | AP32: X | AQ32: X | AR32: X | AS32: 0 | AT32: 0 | AV32: =VLOOKUP(D31,'Faaliyet Cetveli'!$C$10:$G$36,5,FALSE) -> 100
A33: 10 | D33: Uygulama Dersleri Kurslar/Eğitimler | E33: Mesai İçi | F33: X | G33: X | H33: X | I33: X | J33: X | K33: X | L33: X | M33: 0 | N33: X | O33: X | P33: X | Q33: X | R33: X | S33: X | T33: X | U33: 0 | V33: X | W33: X | X33: X | Y33: X | Z33: X | AA33: X | AB33: X | AC33: 0 | AD33: X | AE33: X | AF33: X | AG33: X | AH33: X | AI33: X | AJ33: X | AK33: 0 | AL33: X | AM33: X | AN33: X | AO33: X | AP33: X | AQ33: X | AR33: X | AS33: 0 | AT33: 0 | AU33: =AT33+AT34 -> 0 | AV33: =VLOOKUP(D33,'Faaliyet Cetveli'!$C$10:$F$36,4,FALSE) -> 100 | AW33: =(AT33*AV33) -> 0 | AX33: =(AT34*AV34) -> 0
E34: Mesai Dışı | F34: X | G34: X | H34: X | I34: X | J34: X | K34: X | L34: X | M34: 0 | N34: X | O34: X | P34: X | Q34: X | R34: X | S34: X | T34: X | U34: 0 | V34: X | W34: X | X34: X | Y34: X | Z34: X | AA34: X | AB34: X | AC34: 0 | AD34: X | AE34: X | AF34: X | AG34: X | AH34: X | AI34: X | AJ34: x | AK34: 0 | AL34: X | AM34: X | AN34: X | AO34: X | AP34: X | AQ34: X | AR34: X | AS34: 0 | AT34: 0 | AV34: =VLOOKUP(D33,'Faaliyet Cetveli'!$C$10:$G$36,5,FALSE) -> 100
A35: TOPLAM | M35: =SUM(M15:M33) -> 18 | U35: =SUM(U15:U33) -> 20 | AC35: =SUM(AC15:AC33) -> 20 | AK35: =SUM(AK15:AK33) -> 20 | AS35: =SUM(AS15:AS33) -> 10 | AT35: =SUM(AT15:AT33) -> 88 | AU35: =SUM(AU15:AU33) -> 88 | AW35: =SUM(AW14:AW33) -> 0 | AX35: =SUM(AX14:AX33) -> 8,800
AW36: =AW35+AX35 -> 8,800
B38: Kısaltmalar | D38: Cu-Cuma | N38: Semboller | AI38: Düzenleyen | AU38: Onaylayan
B39: Pt-Pazartesi | D39: Ct-Cumartesi | N39: * | O39: İzinli-Raporlu Öğr.Elemanı | AC39: Adı ve Soyadı | AF39: : | AR39: Adı ve Soyadı | AU39: :
B40: Sa-Salı | D40: T-Toplam | N40: + | O40: Gerçek haftalık ders saati | AC40: Ünvanı | AF40: : | AR40: Ünvanı | AU40: :
B41: Ça-Çarşamba | D41: Zd-Haftalık Zorunlu Ders Toplamı | N41: @ | R41: Kesilmiş haftalık ders saati | AC41: İmza | AF41: : | AR41: İmza | AU41: :
B42: Pe-Perşembe | D42: öd-Haftalık Ücretli Ders Toplamı | N42: - | O42: İşleme alınmayan gün

Sheet EK-1 Puantajlı Dağıtım Cetveli
B1: AÇIKLAMA : BU ÖDEME CETVELİ PUANTAJ DÜZENLENEREK YAPILACAK ÖDEMELERDE KULLANILACAKTIR. PUAN BİLGİLERİ PUANTAJ CETVELİNDEN OTOMATİK OLARAK AKTARILACAKTIR.
B3: T.C.
B4: YALOVA ÜNİVERSİTESİ
B5: FAKÜLTE/ENSTİTÜ/YÜKSEKOKUL/EĞİTİM MERKEZİ
B6: DÖNER SERMAYE ÜCRET DAĞITIM CETVELİ
AB8: EK-1
B9: S.NO | C9: MAKBUZ / DEKONT | E9: FİRMA / KİŞİ ADI | G9: YATAN TUTAR | H9: KDV | K9: KDV'SİZ TUTAR | M9: HAZİNE PAYI | P9: BAP PAYI | R9: MAL/HİZMET ALIMLARI İLE DİĞER İHTİYAÇLAR VE YÖNETİCİ PAYI İÇİN AYRILAN | V9: ÖĞRETİM ELEMANI PAYI
R11: REKTÖRLÜK PAYI | T11: BİRİM PAYI | V11: TOPLAM PUAN (B1+B2) | X11: =T35+U35 -> 8,800 | Z11: EK ÖDEME KATSAYISI | AB11: =Z19/X11 -> 0.07
C12: TARİH | D12: NO | H12: 1.08 | K12: 100% | M12: 1% | P12: 5% | R12: 30% | V12: =K12-(M12+P12+R13+T13) -> 64% | X12: ÖDENMİŞ HAKEDİŞ | Z12: ÖDENECEK HAKEDİŞ | AB12: KALAN TUTAR
R13: 10% | T13: 20%
B14: 1. | C14: 2017-01-01 | D14: xxxxx | E14: FİRMA / KİŞİ ADI | G14: 1,080.00 | H14: =G14-K14 -> 80.00 | K14: =G14/H$12 -> 1,000.00 | M14: =$K14*M$12 -> 10.00 | P14: =$K14*P$12 -> 50.00 | R14: =$K14*R$13 -> 100.00 | T14: =$K14*T$13 -> 200.00 | V14: =K14*V12 -> 640.00 | X14: 0 | Z14: =V14-X14 -> 640.00 | AB14: =V14-Z14 -> 0
B15: 2. | H15: =G15-K15 -> 0 | K15: =G15/H$12 -> 0 | M15: =$K15*M$12 -> 0 | P15: =$K15*P$12 -> 0 | R15: =$K15*R$13 -> 0 | T15: =$K15*T$13 -> 0 | V15: =K15*V13 -> 0 | X15: 0 | Z15: =V15-X15 -> 0 | AB15: =V15-Z15 -> 0
B16: 3. | H16: =G16-K16 -> 0 | K16: =G16/H$12 -> 0 | M16: =$K16*M$12 -> 0 | P16: =$K16*P$12 -> 0 | R16: =$K16*R$13 -> 0 | T16: =$K16*T$13 -> 0 | V16: =K16*V14 -> 0 | X16: 0 | Z16: =V16-X16 -> 0 | AB16: =V16-Z16 -> 0
B17: 4. | G17: 0 | H17: =G17-K17 -> 0 | K17: =G17/H$12 -> 0 | M17: =$K17*M$12 -> 0 | P17: =$K17*P$12 -> 0 | R17: =$K17*R$13 -> 0 | T17: =$K17*T$13 -> 0 | V17: =K17*V15 -> 0 | X17: 0 | Z17: =V17-X17 -> 0 | AB17: =V17-Z17 -> 0
B18: 5. | G18: 0 | H18: =G18-K18 -> 0 | K18: =G18/H$12 -> 0 | M18: =$K18*M$12 -> 0 | P18: =K18*P$12 -> 0 | R18: =$K18*R$13 -> 0 | T18: =$K18*T$13 -> 0 | V18: =K18*V16 -> 0 | X18: 0 | Z18: =V18-X18 -> 0 | AB18: =V18-Z18 -> 0
B19: TOPLAM | G19: =SUM(G14:G18) -> 1,080.00 | H19: =SUM(H14:H18) -> 80.00 | K19: =SUM(K14:K18) -> 1,000.00 | M19: =SUM(M14:O18) -> 10.00 | P19: =SUM(P14:P18) -> 50.00 | R19: =SUM(R14:R18) -> 100.00 | T19: =SUM(T14:T18) -> 200.00 | V19: =SUM(V14:W18) -> 640.00 | X19: =SUM(X14:Y18) -> 0 | Z19: =SUM(Z14:Z18) -> 640.00 | AB19: =SUM(AB14:AB18) -> 0
B21: S.NO | C21: ADI SOYADI | E21: TC KİMLİK NO | G21: KADRO TİPİ | H21: ÜNVANI | K21: EK ÖDEME MATRAHI | M21: MESAİ İÇİ TAVAN ORAN (%) | O21: MESAİ İÇİ MATRAHI B1 | Q21: MESAİ DIŞI TAVAN ORAN (%) | R21: MESAİ DIŞI MATRAHI B2 | T21: B1 PUANI | U21: B2 PUANI | V21: TOPLAM PUAN B1+B2 | W21: EK ÖDEME KATSAYISI | X21: ÖDENECEK BRÜT TUTAR B1 | Y21: TOPLAM TUTARA ORANI (%) | Z21: ÖDENECEK BRÜT TUTAR B2 | AA21: TOPLAM TUTARA ORANI (%) | AB21: ÖDENECEK BRÜT EK ÖDEME TOPLAMI
Y24: B1 | AA24: B2
B25: 1. | C25: Örnek KİŞİ A | E25: xxxxxxxxxxxxx | G25: 2547 | H25: Doç.Dr. | K25: 2,000.00 | M25: =IF(H25<>"",VLOOKUP(H25,Veriler!$B$4:$D$12,2,FALSE),0) -> 950 | O25: =K25*M25% -> 19,000.00 | Q25: =IF(H25<>"",VLOOKUP(H25,Veriler!$B$4:$D$12,3,FALSE),0) -> 475 | R25: =K25*Q25% -> 9,500.00 | T25: ='Ek Ödemem Puantaj Cetveli'!AW15 -> 0 | U25: ='Ek Ödemem Puantaj Cetveli'!AX15 -> 6,600 | V25: =IF(T25+U25>0,T25+U25,"-") -> 6,600 | W25: =IF(V25="-","-",AB$11) -> 0.07 | X25: =IF(T25=0,"-",T25*W25) -> - | Y25: =IF(T25=0,"-",X25/Z$19*100) -> - | Z25: =IF(U25=0,"-",U25*W25) -> 480.00 | AA25: =IF(U25=0,"-",Z25/Z$19*100) -> 75.0000 | AB25: =IF(X25="-",IF(Z25="-","-",Z25),IF(Z25="-",X25,Z25+X25)) -> 480.00
B26: 2. | C26: Örnek KİŞİ B | E26: xxxxxxxxxxxxx | G26: 2547 | H26: Doç.Dr. | K26: 2,000.00 | M26: =IF(H26<>"",VLOOKUP(H26,Veriler!$B$4:$D$12,2,FALSE),0) -> 950 | O26: =K26*M26% -> 19,000.00 | Q26: =IF(H26<>"",VLOOKUP(H26,Veriler!$B$4:$D$12,3,FALSE),0) -> 475 | R26: =K26*Q26% -> 9,500.00 | T26: ='Ek Ödemem Puantaj Cetveli'!AW17 -> 0 | U26: ='Ek Ödemem Puantaj Cetveli'!AX17 -> 2,200 | V26: =IF(T26+U26>0,T26+U26,"-") -> 2,200 | W26: 0.07 | X26: =IF(T26=0,"-",T26*W26) -> - | Y26: =IF(T26=0,"-",X26/Z$19*100) -> - | Z26: =IF(U26=0,"-",U26*W26) -> 160.00 | AA26: =IF(U26=0,"-",Z26/Z$19*100) -> 25.0000 | AB26: 160.00
B27: 3. | M27: =IF(H27<>"",VLOOKUP(H27,Veriler!$B$4:$D$12,2,FALSE),0) -> 0 | O27: 0 | Q27: =IF(H27<>"",VLOOKUP(H27,Veriler!$B$4:$D$12,3,FALSE),0) -> 0 | R27: 0 | T27: ='Ek Ödemem Puantaj Cetveli'!AW19 -> 0 | U27: ='Ek Ödemem Puantaj Cetveli'!AX19 -> 0 | V27: - | W27: - | X27: - | Y27: =IF(T27=0,"-",X27/Z$19*100) -> - | Z27: =IF(U27=0,"-",U27*W27) -> - | AA27: - | AB27: -
B28: 4. | M28: =IF(H28<>"",VLOOKUP(H28,Veriler!$B$4:$D$12,2,FALSE),0) -> 0 | O28: =K28*M28% -> 0 | Q28: =IF(H28<>"",VLOOKUP(H28,Veriler!$B$4:$D$12,3,FALSE),0) -> 0 | R28: 0 | T28: ='Ek Ödemem Puantaj Cetveli'!AW21 -> 0 | U28: ='Ek Ödemem Puantaj Cetveli'!AX21 -> 0 | V28: - | W28: - | X28: - | Y28: =IF(T28=0,"-",X28/Z$19*100) -> - | Z28: =IF(U28=0,"-",U28*W28) -> - | AA28: - | AB28: -
B29: 5. | M29: =IF(H29<>"",VLOOKUP(H29,Veriler!$B$4:$D$12,2,FALSE),0) -> 0 | O29: =K29*M29% -> 0 | Q29: =IF(H29<>"",VLOOKUP(H29,Veriler!$B$4:$D$12,3,FALSE),0) -> 0 | R29: 0 | T29: ='Ek Ödemem Puantaj Cetveli'!AW23 -> 0 | U29: ='Ek Ödemem Puantaj Cetveli'!AX23 -> 0 | V29: - | W29: - | X29: - | Y29: =IF(T29=0,"-",X29/Z$19*100) -> - | Z29: =IF(U29=0,"-",U29*W29) -> - | AA29: - | AB29: -
B30: 6. | M30: =IF(H30<>"",VLOOKUP(H30,Veriler!$B$4:$D$12,2,FALSE),0) -> 0 | O30: 0 | Q30: =IF(H30<>"",VLOOKUP(H30,Veriler!$B$4:$D$12,3,FALSE),0) -> 0 | R30: 0 | T30: ='Ek Ödemem Puantaj Cetveli'!AW25 -> 0 | U30: ='Ek Ödemem Puantaj Cetveli'!AX25 -> 0 | V30: - | W30: - | X30: - | Y30: - | Z30: =IF(U30=0,"-",U30*W30) -> - | AA30: - | AB30: =IF(X30="-",IF(Z30="-","-",Z30),IF(Z30="-",X30,Z30+X30)) -> -
B31: 7. | M31: =IF(H31<>"",VLOOKUP(H31,Veriler!$B$4:$D$12,2,FALSE),0) -> 0 | O31: 0 | Q31: =IF(H31<>"",VLOOKUP(H31,Veriler!$B$4:$D$12,3,FALSE),0) -> 0 | R31: 0 | T31: ='Ek Ödemem Puantaj Cetveli'!AW27 -> 0 | U31: ='Ek Ödemem Puantaj Cetveli'!AX27 -> 0 | V31: - | W31: =IF(V31="-","-",AB$11) -> - | X31: - | Y31: - | Z31: - | AA31: - | AB31: -
B32: 8. | M32: =IF(H32<>"",VLOOKUP(H32,Veriler!$B$4:$D$12,2,FALSE),0) -> 0 | O32: 0 | Q32: =IF(H32<>"",VLOOKUP(H32,Veriler!$B$4:$D$12,3,FALSE),0) -> 0 | R32: 0 | T32: ='Ek Ödemem Puantaj Cetveli'!AW29 -> 0 | U32: ='Ek Ödemem Puantaj Cetveli'!AX29 -> 0 | V32: - | W32: =IF(V32="-","-",AB$11) -> - | X32: - | Y32: - | Z32: - | AA32: - | AB32: -
B33: 9. | M33: =IF(H33<>"",VLOOKUP(H33,Veriler!$B$4:$D$12,2,FALSE),0) -> 0 | O33: 0 | Q33: =IF(H33<>"",VLOOKUP(H33,Veriler!$B$4:$D$12,3,FALSE),0) -> 0 | R33: 0 | T33: ='Ek Ödemem Puantaj Cetveli'!AW31 -> 0 | U33: ='Ek Ödemem Puantaj Cetveli'!AX31 -> 0 | V33: - | W33: =IF(V33="-","-",AB$11) -> - | X33: - | Y33: - | Z33: - | AA33: - | AB33: -
B34: 10. | M34: =IF(H34<>"",VLOOKUP(H34,Veriler!$B$4:$D$12,2,FALSE),0) -> 0 | O34: 0 | Q34: =IF(H34<>"",VLOOKUP(H34,Veriler!$B$4:$D$12,3,FALSE),0) -> 0 | R34: 0 | T34: ='Ek Ödemem Puantaj Cetveli'!AW33 -> 0 | U34: ='Ek Ödemem Puantaj Cetveli'!AX33 -> 0 | V34: - | W34: =IF(V34="-","-",AB$11) -> - | X34: - | Y34: - | Z34: - | AA34: - | AB34: -
B35: TOPLAM | T35: =SUM(T25:T34) -> 0 | U35: =SUM(U25:U34) -> 8,800 | V35: =SUM(V25:V34) -> 8,800 | X35: =SUM(X25:X34) -> 0 | Y35: =SUM(Y25:Y34) -> 0.0000 | Z35: =SUM(Z25:Z34) -> 640.00 | AA35: =SUM(AA25:AA34) -> 100.0000 | AB35: =SUM(AB25:AB34) -> 640.00
C39: Mesai İçi Çalışma | G39: Üniversite İmkanları Kullanılmıştır.
C40: Mesai Dışı Çalışma | G40: Üniversite İmkanları Kullanılmamıştır.
C43: Yukarıda Beyan Etmiş Olduğum Bilgilerin Doğru Olduğunu Kabul Ediyorum.
C44: Proje Yürütücüsü / Koordinatör | Q44: Müdür / Dekan
C46: …./…./ 20.. | Q46: …./…./ 20..
C51: Adı Soyadı | Q51: Adı Soyadı
C52: İmza | Q52: İmza
B56: AÇIKLAMA : BU ÖDEME CETVELİ PUANTAJ DÜZENLENEREK YAPILACAK ÖDEMELERDE KULLANILACAKTIR. PUAN BİLGİLERİ PUANTAJ CETVELİNDEN OTOMATİK OLARAK AKTARILACAKTIR.

Sheet EK-2 Dağıtım Cetveli %30-15
B1: AÇIKLAMA : BU ÖDEME CETVELİ PUANTAJ DÜZENLENMEDEN DAHA ÖNCE YÖNETİM KURULUNCA BELİRLENMİŞ ÇALIŞMA SAATLERİ VE PUANLARIN MANUEL GİRİLMESİ İLE YAPILACAKTIR.
B3: T.C.
B4: YALOVA ÜNİVERSİTESİ
B5: FAKÜLTE/ENSTİTÜ/YÜKSEKOKUL/EĞİTİM MERKEZİ
B6: DÖNER SERMAYE ÜCRET DAĞITIM CETVELİ
AB8: EK-2
B9: S.NO | C9: MAKBUZ / DEKONT | E9: FİRMA / KİŞİ ADI | G9: YATAN TUTAR | H9: KDV | K9: KDV'SİZ TUTAR | M9: HAZİNE PAYI | P9: BAP PAYI | R9: MAL/HİZMET ALIMLARI İLE DİĞER İHTİYAÇLAR VE YÖNETİCİ PAYI İÇİN AYRILAN | V9: ÖĞRETİM ELEMANI PAYI
R11: REKTÖRLÜK PAYI | T11: BİRİM PAYI | V11: TOPLAM PUAN (B1+B2) | X11: =T47+U47 -> 100 | Z11: EK ÖDEME KATSAYISI | AB11: =Z31/X11 -> 318.51
C12: TARİH | D12: NO | H12: 1.20 | K12: 100% | M12: 1% | P12: 5% | R12: 30% | V12: =K12-(M12+P12+R13+T13) -> 64% | X12: ÖDENMİŞ HAKEDİŞ | Z12: ÖDENECEK HAKEDİŞ | AB12: KALAN TUTAR
R13: 10% | T13: 20%
B14: 1 | C14: 2017-01-01 | D14: xxxx | E14: FİRMA / KİŞİ ADI | G14: 1,180.00 | H14: =G14-K14 -> 196.67 | K14: =G14/H$12 -> 983.33 | M14: =$K14*M$12 -> 9.83 | P14: =$K14*P$12 -> 49.17 | R14: =$K14*R$13 -> 98.33 | T14: =$K14*T$13 -> 196.67 | V14: =K14*V$12 -> 629.33 | Z14: =V14-X14 -> 629.33
B15: 2 | G15: 1,500.00 | H15: 250.00 | K15: =G15/H$12 -> 1,250.00 | M15: =$K15*M$12 -> 12.50 | P15: =$K15*P$12 -> 62.50 | R15: =$K15*R$13 -> 125.00 | T15: =$K15*T$13 -> 250.00 | V15: =K15*V$12 -> 800.00 | Z15: =V15-X15 -> 800.00
B16: 3 | G16: 1,800.00 | H16: 300.00 | K16: =G16/H$12 -> 1,500.00 | M16: =$K16*M$12 -> 15.00 | P16: =$K16*P$12 -> 75.00 | R16: =$K16*R$13 -> 150.00 | T16: =$K16*T$13 -> 300.00 | V16: =K16*V$12 -> 960.00 | Z16: =V16-X16 -> 960.00
G17: 2,100.00 | H17: 350.00 | K17: =G17/H$12 -> 1,750.00 | M17: =$K17*M$12 -> 17.50 | P17: =$K17*P$12 -> 87.50 | R17: =$K17*R$13 -> 175.00 | T17: =$K17*T$13 -> 350.00 | V17: =K17*V$12 -> 1,120.00 | Z17: =V17-X17 -> 1,120.00
G18: 2,400.00 | H18: 400.00 | K18: 2,000.00 | M18: 20.00 | P18: 100.00 | R18: 200.00 | T18: 400.00 | V18: =K18*V$12 -> 1,280.00 | Z18: =V18-X18 -> 1,280.00
G19: 6,000.00 | H19: 1,000.00 | K19: =G19/H$12 -> 5,000.00 | M19: 50.00 | P19: 250.00 | R19: 500.00 | T19: 1,000.00 | V19: =K19*V$12 -> 3,200.00 | Z19: =V19-X19 -> 3,200.00
G20: 9,000.00 | H20: 1,500.00 | K20: 7,500.00 | M20: 75.00 | P20: 375.00 | R20: 750.00 | T20: 1,500.00 | V20: 4,800.00 | Z20: 4,800.00
G21: 1,180.00 | H21: =G21-K21 -> 196.67 | K21: 983.33 | M21: 9.83 | P21: 49.17 | R21: 98.33 | T21: 196.67 | V21: 629.33 | Z21: 629.33
G22: 15,000.00 | H22: 2,500.00 | K22: 12,500.00 | M22: 125.00 | P22: 625.00 | R22: 1,250.00 | T22: 2,500.00 | V22: 8,000.00 | Z22: 8,000.00
G23: 1,180.00 | H23: 196.67 | K23: 983.33 | M23: 9.83 | P23: 49.17 | R23: 98.33 | T23: 196.67 | V23: 629.33 | Z23: 629.33
G24: 12,000.00 | H24: 2,000.00 | K24: 10,000.00 | M24: 100.00 | P24: 500.00 | R24: 1,000.00 | T24: 2,000.00 | V24: 6,400.00 | Z24: 6,400.00
G25: 600.00 | H25: 100.00 | K25: 500.00 | M25: 5.00 | P25: 25.00 | R25: 50.00 | T25: 100.00 | V25: 320.00 | Z25: 320.00
G26: 900.00 | H26: 150.00 | K26: 750.00 | M26: 7.50 | P26: 37.50 | R26: 75.00 | T26: 150.00 | V26: 480.00 | Z26: 480.00
G27: 1,000.00 | H27: =G27-K29 -> 16.67 | K27: 833.33 | M27: 8.33 | P27: 41.67 | R27: 83.33 | T27: 166.67 | V27: 533.33 | Z27: 533.33 | AB27: =V27-Z27 -> 0
G28: 1,200.00 | H28: =G28-K28 -> 200.00 | K28: 1,000.00 | M28: 10.00 | P28: 50.00 | R28: 100.00 | T28: 200.00 | V28: 640.00 | Z28: =V28-X28 -> 640.00
G29: 1,180.00 | H29: =G29-K29 -> 196.67 | K29: 983.33 | M29: =$K29*M$12 -> 9.83 | P29: 49.17 | R29: 98.33 | T29: 196.67 | V29: 629.33 | Z29: 629.33
G30: 1,500.00 | H30: =G30-K30 -> 250.00 | K30: 1,250.00 | M30: 12.50 | P30: =K30*P$12 -> 62.50 | R30: 125.00 | T30: 250.00 | V30: =K30*V$12 -> 800.00 | Z30: 800.00 | AB30: =V30-Z30 -> 0
B31: TOPLAM | G31: =SUM(G14:G30) -> 59,720.00 | H31: =SUM(H14:H30) -> 9,803.33 | K31: =SUM(K14:K30) -> 49,766.67 | M31: =SUM(M14:O30) -> 497.67 | P31: =SUM(P14:P30) -> 2,488.33 | R31: =SUM(R14:R30) -> 4,976.67 | T31: =SUM(T14:T30) -> 9,953.33 | V31: =SUM(V14:W30) -> 31,850.67 | X31: =SUM(X14:Y30) -> 0 | Z31: =SUM(Z14:AA30) -> 31,850.67 | AB31: =SUM(AB14:AB30) -> 0
B33: S.NO | C33: ADI SOYADI | E33: TC KİMLİK NO | G33: KADRO TİPİ | H33: ÜNVANI | K33: EK ÖDEME MATRAHI | M33: MESAİ İÇİ TAVAN ORAN (%) | O33: MESAİ İÇİ MATRAHI B1 | Q33: MESAİ DIŞI TAVAN ORAN (%) | R33: MESAİ DIŞI MATRAHI B2 | T33: B1 PUANI | U33: B2 PUANI | V33: TOPLAM PUAN B1+B2 | W33: EK ÖDEME KATSAYISI | X33: ÖDENECEK BRÜT TUTAR B1 | Y33: TOPLAM TUTARA ORANI (%) | Z33: ÖDENECEK BRÜT TUTAR B2 | AA33: TOPLAM TUTARA ORANI (%) | AB33: ÖDENECEK BRÜT EK ÖDEME TOPLAMI
Y36: B1 | AA36: B2
B37: 1. | C37: Örnek x | E37: 123456789101 | G37: 2547 | H37: Prof.Dr. | K37: 2,500.00 | M37: =IF(H37<>"",VLOOKUP(H37,Veriler!$B$4:$D$12,2,FALSE),0) -> 950 | O37: =K37*M37% -> 23,750.00 | Q37: =IF(H37<>"",VLOOKUP(H37,Veriler!$B$4:$D$12,3,FALSE),0) -> 475 | R37: =K37*Q37% -> 11,875.00 | T37: 30 | U37: 0 | V37: =IF(T37+U37>0,T37+U37,"-") -> 30 | W37: =IF(V37="-","-",AB$11) -> 318.51 | X37: =IF(T37=0,"-",T37*W37) -> 9,555.20 | Y37: =IF(T37=0,"-",X37/Z$31*100) -> 30.0000 | Z37: =IF(U37=0,"-",U37*W37) -> - | AA37: =IF(U37=0,"-",Z37/Z$31*100) -> - | AB37: =IF(X37="-",IF(Z37="-","-",Z37),IF(Z37="-",X37,Z37+X37)) -> 9,555.20
B38: 2. | C38: Örnek y | E38: 123456789102 | G38: 2547 | H38: Doç.Dr. | K38: 2,000.00 | M38: =IF(H38<>"",VLOOKUP(H38,Veriler!$B$4:$D$12,2,FALSE),0) -> 950 | O38: =K38*M38% -> 19,000.00 | Q38: =IF(H38<>"",VLOOKUP(H38,Veriler!$B$4:$D$12,3,FALSE),0) -> 475 | R38: =K38*Q38% -> 9,500.00 | T38: 30 | U38: 0 | V38: =IF(T38+U38>0,T38+U38,"-") -> 30 | W38: 318.51 | X38: =IF(T38=0,"-",T38*W38) -> 9,555.20 | Y38: =IF(T38=0,"-",X38/Z$31*100) -> 30.0000 | Z38: =IF(U38=0,"-",U38*W38) -> - | AA38: =IF(U38=0,"-",Z38/Z$31*100) -> - | AB38: 9,555.20
B39: 3. | C39: Örnek z | E39: 123456789103 | G39: 2547 | H39: Dr.Öğr.Gör. | K39: 1,800.00 | M39: =IF(H39<>"",VLOOKUP(H39,Veriler!$B$4:$D$12,2,FALSE),0) -> 950 | O39: 17,100.00 | Q39: =IF(H39<>"",VLOOKUP(H39,Veriler!$B$4:$D$12,3,FALSE),0) -> 475 | R39: 8,550.00 | T39: 0 | U39: 40 | V39: 40 | W39: 318.51 | X39: - | Y39: =IF(T39=0,"-",X39/Z$31*100) -> - | Z39: =IF(U39=0,"-",U39*W39) -> 12740.27 | AA39: 40.0000 | AB39: 12,740.27
B40: 4. | K40: 0 | M40: =IF(H40<>"",VLOOKUP(H40,Veriler!$B$4:$D$12,2,FALSE),0) -> 0 | O40: =K40*M40% -> 0 | Q40: =IF(H40<>"",VLOOKUP(H40,Veriler!$B$4:$D$12,3,FALSE),0) -> 0 | R40: 0 | T40: 0 | U40: 0 | V40: - | W40: - | X40: - | Y40: =IF(T40=0,"-",X40/Z$31*100) -> - | Z40: =IF(U40=0,"-",U40*W40) -> - | AA40: - | AB40: -
B41: 5. | K41: 0 | M41: =IF(H41<>"",VLOOKUP(H41,Veriler!$B$4:$D$12,2,FALSE),0) -> 0 | O41: =K41*M41% -> 0 | Q41: =IF(H41<>"",VLOOKUP(H41,Veriler!$B$4:$D$12,3,FALSE),0) -> 0 | R41: 0 | T41: 0 | U41: 0 | V41: - | W41: - | X41: - | Y41: =IF(T41=0,"-",X41/Z$31*100) -> - | Z41: =IF(U41=0,"-",U41*W41) -> - | AA41: - | AB41: -
B42: 6. | M42: =IF(H42<>"",VLOOKUP(H42,Veriler!$B$4:$D$12,2,FALSE),0) -> 0 | O42: 0 | Q42: =IF(H42<>"",VLOOKUP(H42,Veriler!$B$4:$D$12,3,FALSE),0) -> 0 | R42: 0 | T42: 0 | U42: 0 | V42: - | W42: - | X42: - | Y42: - | Z42: =IF(U42=0,"-",U42*W42) -> - | AA42: - | AB42: =IF(X42="-",IF(Z42="-","-",Z42),IF(Z42="-",X42,Z42+X42)) -> -
B43: 7. | M43: =IF(H43<>"",VLOOKUP(H43,Veriler!$B$4:$D$12,2,FALSE),0) -> 0 | O43: 0 | Q43: =IF(H43<>"",VLOOKUP(H43,Veriler!$B$4:$D$12,3,FALSE),0) -> 0 | R43: 0 | T43: 0 | U43: 0 | V43: - | W43: =IF(V43="-","-",AB$11) -> - | X43: - | Y43: - | Z43: - | AA43: - | AB43: -
B44: 8. | M44: =IF(H44<>"",VLOOKUP(H44,Veriler!$B$4:$D$12,2,FALSE),0) -> 0 | O44: 0 | Q44: =IF(H44<>"",VLOOKUP(H44,Veriler!$B$4:$D$12,3,FALSE),0) -> 0 | R44: 0 | T44: 0 | U44: 0 | V44: - | W44: =IF(V44="-","-",AB$11) -> - | X44: - | Y44: - | Z44: - | AA44: - | AB44: -
B45: 9. | M45: =IF(H45<>"",VLOOKUP(H45,Veriler!$B$4:$D$12,2,FALSE),0) -> 0 | O45: 0 | Q45: =IF(H45<>"",VLOOKUP(H45,Veriler!$B$4:$D$12,3,FALSE),0) -> 0 | R45: 0 | T45: 0 | U45: 0 | V45: - | W45: =IF(V45="-","-",AB$11) -> - | X45: - | Y45: - | Z45: - | AA45: - | AB45: -
B46: 10. | M46: =IF(H46<>"",VLOOKUP(H46,Veriler!$B$4:$D$12,2,FALSE),0) -> 0 | O46: 0 | Q46: =IF(H46<>"",VLOOKUP(H46,Veriler!$B$4:$D$12,3,FALSE),0) -> 0 | R46: 0 | T46: 0 | U46: 0 | V46: - | W46: =IF(V46="-","-",AB$11) -> - | X46: - | Y46: - | Z46: - | AA46: - | AB46: -
B47: TOPLAM | T47: =SUM(T37:T46) -> 60 | U47: =SUM(U37:U46) -> 40 | V47: =SUM(V37:V46) -> 100 | X47: =SUM(X37:X46) -> 19,110.40 | Y47: =SUM(Y37:Y46) -> 60.0000 | Z47: =SUM(Z37:Z46) -> 12,740.27 | AA47: =SUM(AA37:AA46) -> 40.0000 | AB47: =SUM(AB37:AB46) -> 31,850.67
C51: Mesai İçi Çalışma | G51: Üniversite İmkanları Kullanılmıştır.
C52: Mesai Dışı Çalışma | G52: Üniversite İmkanları Kullanılmamıştır.
C55: Yukarıda Beyan Etmiş Olduğum Bilgilerin Doğru Olduğunu Kabul Ediyorum.
C56: Proje Yürütücüsü / Koordinatör | Q56: Müdür / Dekan
C58: …./…./ 20.. | Q58: …./…./ 20..
C63: Adı Soyadı | Q63: Adı Soyadı
C64: İmza | Q64: İmza
B68: AÇIKLAMA : BU ÖDEME CETVELİ PUANTAJ DÜZENLENMEDEN DAHA ÖNCE YÖNETİM KURULUNCA BELİRLENMİŞ ÇALIŞMA SAATLERİ VE PUANLARIN MANUEL GİRİLMESİ İLE YAPILACAKTIR.

Sheet EK-3 Dağıtım Cetveli %15
B1: AÇIKLAMA : BU ÖDEME CETVELİ ÜNİVERSİTE İMKANLARININ KULLANILMADIĞI İŞLER VEYA BÜNYESİNDE ATÖLYE VE LABORATUVAR OLMAYAN BİRİMLERDE YAPILAN İŞLER İÇİN DAHA ÖNCE PROTOKOL KAPSAMINDA BELİRLENMİŞ ÖĞRETİM ELEMANI / ELEMANLARI KATKI ORANLARININ MANUEL GİRİLMESİ İLE YAPILACAKTIR.
B3: T.C.
B4: YALOVA ÜNİVERSİTESİ
B5: FAKÜLTE/ENSTİTÜ/YÜKSEKOKUL/EĞİTİM MERKEZİ
B6: DÖNER SERMAYE ÜCRET DAĞITIM CETVELİ
AB8: EK-3
B9: S.NO | C9: MAKBUZ / DEKONT | E9: FİRMA / KİŞİ ADI | G9: YATAN TUTAR | H9: KDV | K9: KDV'SİZ TUTAR | M9: HAZİNE PAYI | P9: BAP PAYI | R9: MAL/HİZMET ALIMLARI İLE DİĞER İHTİYAÇLAR VE YÖNETİCİ PAYI İÇİN AYRILAN | V9: ÖĞRETİM ELEMANI PAYI
R11: REKTÖRLÜK PAYI | T11: BİRİM PAYI | Z11: TOPLAM KATKI ORANI | AB11: 100
C12: TARİH | D12: NO | H12: 1.20 | K12: 100% | M12: 1% | P12: 5% | R12: 15% | V12: =K12-(M12+P12+R13+T13) -> 79% | X12: MASRAF TUTARI VEYA ÖDENMİŞ HAKEDİŞ | Z12: ÖDENECEK HAKEDİŞ | AB12: KALAN TUTAR
R13: 5% | T13: 10%
B14: 1. | C14: 2017-01-01 | D14: xxx | E14: FİRMA / KİŞİ ADI | G14: 18,000.00 | H14: =G14-K14 -> 3,000.00 | K14: =G14/H$12 -> 15,000.00 | M14: =$K14*M$12 -> 150.00 | P14: =$K14*P$12 -> 750.00 | R14: =$K14*R$13 -> 750.00 | T14: =$K14*T$13 -> 1,500.00 | V14: =K14*V12 -> 11,850.00 | X14: 0 | Z14: =V14-X14 -> 11,850.00 | AB14: =V14-Z14 -> 0
B15: 2. | G15: 15,000.00 | H15: =G15-K15 -> 2,500.00 | K15: =G15/H$12 -> 12,500.00 | M15: =$K15*M$12 -> 125.00 | P15: =$K15*P$12 -> 625.00 | R15: =$K15*R$13 -> 625.00 | T15: =$K15*T$13 -> 1,250.00 | V15: =K15*V12 -> 9,875.00 | X15: 0 | Z15: =V15-X15 -> 9,875.00 | AB15: =V15-Z15 -> 0
B16: 3. | G16: 24,000.00 | H16: =G16-K16 -> 4,000.00 | K16: =G16/H$12 -> 20,000.00 | M16: =$K16*M$12 -> 200.00 | P16: =$K16*P$12 -> 1,000.00 | R16: =$K16*R$13 -> 1,000.00 | T16: =$K16*T$13 -> 2,000.00 | V16: =K16*V12 -> 15,800.00 | X16: 0 | Z16: =V16-X16 -> 15,800.00 | AB16: =V16-Z16 -> 0
B17: 4. | G17: 25,000.00 | H17: =G17-K17 -> 4,166.67 | K17: =G17/H$12 -> 20,833.33 | M17: =$K17*M$12 -> 208.33 | P17: =$K17*P$12 -> 1,041.67 | R17: =$K17*R$13 -> 1,041.67 | T17: =$K17*T$13 -> 2,083.33 | V17: =K17*V12 -> 16,458.33 | X17: 0 | Z17: =V17-X17 -> 16,458.33 | AB17: =V17-Z17 -> 0
B18: 5. | G18: 36,000.00 | H18: =G18-K18 -> 6,000.00 | K18: =G18/H$12 -> 30,000.00 | M18: =$K18*M$12 -> 300.00 | P18: =K18*P$12 -> 1,500.00 | R18: =$K18*R$13 -> 1,500.00 | T18: =$K18*T$13 -> 3,000.00 | V18: =K18*V12 -> 23,700.00 | X18: 0 | Z18: =V18-X18 -> 23,700.00 | AB18: =V18-Z18 -> 0
B19: TOPLAM | G19: =SUM(G14:G18) -> 118,000.00 | H19: =SUM(H14:H18) -> 19,666.67 | K19: =SUM(K14:K18) -> 98,333.33 | M19: =SUM(M14:O18) -> 983.33 | P19: =SUM(P14:P18) -> 4,916.67 | R19: =SUM(R14:R18) -> 4,916.67 | T19: =SUM(T14:T18) -> 9,833.33 | V19: =SUM(V14:W18) -> 77,683.33 | X19: =SUM(X14:Y18) -> 0 | Z19: =SUM(Z14:AA18) -> 77,683.33 | AB19: =SUM(AB14:AB18) -> 0
B21: S.NO | C21: ADI SOYADI | E21: TC KİMLİK NO | G21: KADRO TİPİ | H21: ÜNVANI | K21: KATKI ORANI | M21: ÖDENECEK BRÜT EK ÖDEME TOPLAMI
Q22: Yapmış olduğum döner sermaye faaliyetini, 2547 Sayılı Yükseköğretim Kanununun 58 inci maddesinin ( e ) bendi kapsamında, Üniversite imkanlarını kullanmadan gerçekleştiğimi beyan ederim
B25: 1. | C25: ADI SOYADI | E25: xxxxxxxxxxxxx | G25: 2547 | H25: Ünvanı | K25: 100.0000% | M25: =Z$19*K25 -> 77,683.33 | N25: =IF(M25="-","-",S$11) -> 0.00 | O25: =IF(N25="-","-",T$11) -> BİRİM PAYI
B26: 2. | K26: 0.0000% | M26: =Z$19*K26 -> 0.00 | N26: =IF(M26="-","-",S$11) -> 0.00 | O26: =IF(N26="-","-",T$11) -> BİRİM PAYI | S26: Mesai İçi Çalışma | W26: Üniversite İmkanları Kullanılmıştır.
B27: 3. | K27: 0.0000% | M27: 0.00 | N27: 0.00 | O27: BİRİM PAYI | S27: Mesai Dışı Çalışma | W27: Üniversite İmkanları Kullanılmamıştır.
B28: 4. | K28: 0.0000% | M28: 0.00 | N28: 0.00 | O28: BİRİM PAYI
B29: 5. | K29: 0.0000% | M29: 0.00 | N29: 0.00 | O29: BİRİM PAYI | P29: Proje Yürütücüsü / Koordinatör
B30: 6. | K30: 0.0000% | M30: 0.00 | N30: 0.00 | O30: BİRİM PAYI | P30: …./…./ 20..
B31: 7. | K31: 0.0000% | M31: 0.00 | N31: 0.00 | O31: BİRİM PAYI
B32: 8. | K32: 0.0000% | M32: 0.00 | N32: 0.00 | O32: BİRİM PAYI
B33: 9. | K33: 0.0000% | M33: 0.00 | N33: 0.00 | O33: BİRİM PAYI | P33: Adı Soyadı
B34: 10. | K34: 0.0000% | M34: 0.00 | N34: 0.00 | O34: BİRİM PAYI | P34: İmza
B35: TOPLAM | K35: =SUM(K25:K34) -> 100.0000% | M35: =SUM(M25:M34) -> 77,683.33
B37: AÇIKLAMA : BU ÖDEME CETVELİ ÜNİVERSİTE İMKANLARININ KULLANILMADIĞI İŞLER VEYA BÜNYESİNDE ATÖLYE VE LABORATUVAR OLMAYAN BİRİMLERDE YAPILAN İŞLER İÇİN DAHA ÖNCE PROTOKOL KAPSAMINDA BELİRLENMİŞ ÖĞRETİM ELEMANI / ELEMANLARI KATKI ORANLARININ MANUEL GİRİLMESİ İLE YAPILACAKTIR.

Sheet EK-4 Dağıtım Cetveli %15
B1: AÇIKLAMA : BU ÖDEME CETVELİ 2547 SAYILI KANUNUN 58. MADDESİNİN (K) BENDİ UYARINCA ÜNİVERSİTE-SANAYİ İŞBİRLİĞİ KAPSAMINDA ARAŞTIRMA VE GELİŞTİRME, TASARIM VE YENİLİK PROJELERİ İLE FAALİYETLERİ KAPSAMINDA YAPILAN İŞLER İÇİN DAHA ÖNCE PROTOKOL KAPSAMINDA BELİRLENMİŞ ÖĞRETİM ELEMANI / ELEMANLARI KATKI ORANLARININ MANUEL GİRİLMESİ İLE YAPILACAKTIR.
B3: T.C.
B4: YALOVA ÜNİVERSİTESİ
B5: FAKÜLTE/ENSTİTÜ/YÜKSEKOKUL/EĞİTİM MERKEZİ
B6: DÖNER SERMAYE ÜCRET DAĞITIM CETVELİ
AB8: EK-4
B9: S.NO | C9: MAKBUZ / DEKONT | E9: FİRMA / KİŞİ ADI | G9: YATAN TUTAR | H9: KDV | K9: KDV'SİZ TUTAR | M9: HAZİNE PAYI | P9: BAP PAYI | R9: MAL/HİZMET ALIMLARI İLE DİĞER İHTİYAÇLAR VE YÖNETİCİ PAYI İÇİN AYRILAN | V9: ÖĞRETİM ELEMANI PAYI
R11: REKTÖRLÜK PAYI | T11: BİRİM PAYI | Z11: TOPLAM KATKI ORANI | AB11: 100
C12: TARİH | D12: NO | H12: 1.20 | K12: 100% | M12: 0% | P12: 0% | R12: 15% | V12: =K12-(M12+P12+R13+T13) -> 85% | X12: MASRAF TUTARI VEYA ÖDENMİŞ HAKEDİŞ | Z12: ÖDENECEK HAKEDİŞ | AB12: KALAN TUTAR
R13: 5% | T13: 10%
B14: 1. | C14: 2017-01-01 | D14: xxx | E14: FİRMA / KİŞİ ADI | G14: 18,000.00 | H14: =G14-K14 -> 3,000.00 | K14: =G14/H$12 -> 15,000.00 | M14: =$K14*M$12 -> 0 | P14: =$K14*P$12 -> 0 | R14: =$K14*R$13 -> 750.00 | T14: =$K14*T$13 -> 1,500.00 | V14: =K14*V12 -> 12,750.00 | X14: 0 | Z14: =V14-X14 -> 12,750.00 | AB14: =V14-Z14 -> 0
B15: 2. | G15: 1,800.00 | H15: =G15-K15 -> 300.00 | K15: =G15/H$12 -> 1,500.00 | M15: =$K15*M$12 -> 0 | P15: =$K15*P$12 -> 0 | R15: =$K15*R$13 -> 75.00 | T15: =$K15*T$13 -> 150.00 | V15: =K15*V12 -> 1,275.00 | X15: 0 | Z15: =V15-X15 -> 1,275.00 | AB15: =V15-Z15 -> 0
B16: 3. | G16: 15,000.00 | H16: =G16-K16 -> 2,500.00 | K16: =G16/H$12 -> 12,500.00 | M16: =$K16*M$12 -> 0 | P16: =$K16*P$12 -> 0 | R16: =$K16*R$13 -> 625.00 | T16: =$K16*T$13 -> 1,250.00 | V16: =K16*V12 -> 10,625.00 | X16: 0 | Z16: =V16-X16 -> 10,625.00 | AB16: =V16-Z16 -> 0
B17: 4. | G17: 1,500.00 | H17: =G17-K17 -> 250.00 | K17: =G17/H$12 -> 1,250.00 | M17: =$K17*M$12 -> 0 | P17: =$K17*P$12 -> 0 | R17: =$K17*R$13 -> 62.50 | T17: =$K17*T$13 -> 125.00 | V17: =K17*V12 -> 1,062.50 | X17: 0 | Z17: =V17-X17 -> 1,062.50 | AB17: =V17-Z17 -> 0
B18: 5. | G18: 24,000.00 | H18: =G18-K18 -> 4,000.00 | K18: =G18/H$12 -> 20,000.00 | M18: =$K18*M$12 -> 0 | P18: =K18*P$12 -> 0 | R18: =$K18*R$13 -> 1,000.00 | T18: =$K18*T$13 -> 2,000.00 | V18: =K18*V12 -> 17,000.00 | X18: 0 | Z18: =V18-X18 -> 17,000.00 | AB18: =V18-Z18 -> 0
B19: TOPLAM | G19: =SUM(G14:G18) -> 60,300.00 | H19: =SUM(H14:H18) -> 10,050.00 | K19: =SUM(K14:K18) -> 50,250.00 | M19: =SUM(M14:O18) -> 0 | P19: =SUM(P14:P18) -> 0 | R19: =SUM(R14:R18) -> 2,512.50 | T19: =SUM(T14:T18) -> 5,025.00 | V19: =SUM(V14:W18) -> 42,712.50 | X19: =SUM(X14:Y18) -> 0 | Z19: =SUM(Z14:AA18) -> 42,712.50 | AB19: =SUM(AB14:AB18) -> 0
B21: S.NO | C21: ADI SOYADI | E21: TC KİMLİK NO | G21: KADRO TİPİ | H21: ÜNVANI | K21: KATKI ORANI | M21: ÖDENECEK BRÜT EK ÖDEME TOPLAMI
Q22: Yapmış olduğum döner sermaye faaliyetini, 2547 Sayılı Yükseköğretim Kanununun 58 inci maddesinin ( k ) bendi kapsamında gerçekleştiğimi beyan ederim
B25: 1. | C25: ADI SOYADI | E25: xxxxxxxxxxxxx | G25: 2547 | H25: Ünvanı | K25: 100.0000% | M25: =Z$19*K25 -> 42,712.50 | N25: =IF(M25="-","-",S$11) -> 0.00 | O25: =IF(N25="-","-",T$11) -> BİRİM PAYI
B26: 2. | K26: 0.0000% | M26: =Z$19*K26 -> 0.00 | N26: =IF(M26="-","-",S$11) -> 0.00 | O26: BİRİM PAYI | S26: Mesai İçi Çalışma | V26: 0 | W26: Üniversite İmkanları Kullanılmıştır.
B27: 3. | K27: 0.0000% | M27: 0.00 | N27: 0.00 | O27: BİRİM PAYI | S27: Mesai Dışı Çalışma | W27: Üniversite İmkanları Kullanılmamıştır.
B28: 4. | K28: 0.0000% | M28: 0.00 | N28: 0.00 | O28: BİRİM PAYI
B29: 5. | K29: 0.0000% | M29: 0.00 | N29: 0.00 | O29: BİRİM PAYI | P29: 0
B30: 6. | K30: 0.0000% | M30: 0.00 | N30: 0.00 | O30: BİRİM PAYI | P30: …./…./ 20..
B31: 7. | K31: 0.0000% | M31: 0.00 | N31: 0.00 | O31: BİRİM PAYI
B32: 8. | K32: 0.0000% | M32: 0.00 | N32: 0.00 | O32: BİRİM PAYI
B33: 9. | K33: 0.0000% | M33: 0.00 | N33: 0.00 | O33: BİRİM PAYI | P33: Adı Soyadı
B34: 10. | K34: 0.0000% | M34: 0.00 | N34: 0.00 | O34: BİRİM PAYI | P34: İmza
B35: TOPLAM | K35: =SUM(K25:K34) -> 100.0000% | M35: =SUM(M25:M34) -> 42,712.50
B37: AÇIKLAMA : BU ÖDEME CETVELİ ÜNİVERSİTE İMKANLARININ KULLANILMADIĞI İŞLER VEYA BÜNYESİNDE ATÖLYE VE LABORATUVAR OLMAYAN BİRİMLERDE YAPILAN İŞLER İÇİN DAHA ÖNCE PROTOKOL KAPSAMINDA BELİRLENMİŞ ÖĞRETİM ELEMANI / ELEMANLARI KATKI ORANLARININ MANUEL GİRİLMESİ İLE YAPILACAKTIR.
